bitfinex/quotes_ETHUSD_20250123
["timestamp","ask_amount","ask_price","bid_price","bid_amount"]
[1737660539948,0.17798065,3217.4,3217.2,0.55]
[1737660540432,0.63218354,3217.6,3217.2,3.65828]
[1737660540639,0.63218354,3217.6,3217.0,3.6584]
[1737660540931,3.74013354,3217.6,3217.0,3.6584]
[1737660541123,0.11121746,3217.3,3217.0,3.6584]
[1737660541522,0.11121746,3217.3,3217.2,0.55]
[1737660541739,0.11121746,3217.3,3217.2,3.65829]
[1737660542166,0.11121746,3217.3,3217.0,0.55]
[1737660542312,3.21942746,3217.3,3217.0,0.55]
[1737660542506,0.11121746,3217.3,3216.9,0.55]
[1737660542720,0.11121746,3217.3,3216.9,3.65857]
[1737660543030,0.11121746,3217.3,3217.1,0.55]
[1737660543531,0.11121746,3217.3,3217.2,0.55]
[1737660543835,0.63218354,3217.6,3217.2,0.55]
[1737660544553,0.63218354,3217.6,3217.2,3.65823]
[1737660544751,0.63218354,3217.6,3216.8,35.0]
[1737660544752,1.08346789,3217.6,3216.8,35.0]
[1737660544914,3.10815,3217.4,3216.6,3.10886]
[1737660545119,3.74008354,3217.6,3217.0,3.10844]
[1737660545319,3.74008354,3217.6,3217.1,0.55]
[1737660545520,6.84806354,3217.6,3217.1,0.55]
[1737660545729,0.63218354,3217.6,3217.1,0.55]
[1737660545929,0.63218354,3217.6,3217.3,0.55]
[1737660546794,3.74012354,3217.6,3217.1,3.65838]
[1737660546948,3.74012354,3217.6,3217.1,0.55]
[1737660547153,3.74012354,3217.6,3217.1,3.65837]
[1737660547457,0.63218354,3217.6,3217.1,3.65837]
[1737660547644,3.74009354,3217.6,3217.1,3.65837]
[1737660548543,0.63218354,3217.6,3217.1,3.65837]
[1737660548884,0.11118426,3217.5,3217.2,3.65829]
[1737660549033,0.11118426,3217.5,3217.0,6.21687]
[1737660549379,0.11118426,3217.5,3217.2,3.65821]
[1737660550034,0.11118426,3217.5,3217.4,0.55]
[1737660550674,3.88052,3217.8,3217.4,0.55]
[1737660551278,3.88052,3217.8,3217.2,3.65828]
[1737660551279,3.10781,3217.7,3217.2,3.65828]
[1737660551446,0.7728,3217.8,3217.2,0.55]
[1737660551648,0.7728,3217.8,3217.4,0.55]
[1737660552167,0.7728,3217.8,3217.3,3.10818]
[1737660552168,0.11118872,3217.6,3217.2,0.55]
[1737660552358,0.11118872,3217.6,3217.2,3.65828]
[1737660553148,0.11118872,3217.6,3217.4,0.55]
[1737660553549,0.11118872,3217.5,3217.4,0.55]
[1737660553850,0.11118872,3217.5,3217.2,3.65828]
[1737660554674,3.88056,3217.8,3217.2,3.65828]
[1737660555034,0.61620139,3217.9,3217.2,3.65828]
[1737660555241,3.72387139,3217.9,3217.4,0.55]
[1737660555635,0.61620139,3217.9,3217.3,0.55]
[1737660555836,0.8215,3218.1,3217.9,0.55]
[1737660556063,0.8215,3218.1,3217.6,3.10788]
[1737660556064,0.8215,3218.1,3217.7,0.55]
[1737660556237,3.92893,3218.1,3217.7,0.55]
[1737660556739,1.54292158,3218.1,3217.7,0.55]
[1737660556937,3.10752,3218.0,3217.3,3.10818]
[1737660557141,2.17685658,3218.1,3217.3,0.55]
[1737660557362,3.10782,3217.7,3217.3,0.55]
[1737660557672,3.10778,3217.8,3217.4,0.55]
[1737660557974,0.621534,3217.8,3217.2,0.55]
[1737660558180,3.1078,3217.7,3217.0,3.10848]
[1737660558342,3.10797,3217.6,3217.1,0.55]
[1737660558774,3.10779,3217.8,3217.3,0.55]
[1737660559152,5.28431658,3218.1,3217.3,3.65818]
[1737660559557,3.10767,3217.9,3217.3,3.65818]
[1737660560163,3.10767,3217.9,3217.2,0.55]
[1737660560380,3.10781,3217.7,3217.2,0.55]
[1737660561669,3.10781,3217.7,3217.2,3.65828]
[1737660561875,4.562865,3218.1,3217.2,3.65202562]
[1737660562061,0.633935,3218.1,3217.9,3.1076]
[1737660562245,3.18459702,3218.4,3218.0,0.55]
[1737660562448,3.18459702,3218.4,3217.9,0.55]
[1737660562689,3.10733,3218.2,3217.9,0.55]
[1737660562849,3.10733,3218.2,3217.8,0.55]
[1737660563045,0.17794213,3218.3,3218.0,0.55]
[1737660563250,0.60876158,3218.2,3218.0,0.55]
[1737660563451,0.60876158,3218.2,3217.8,0.55]
[1737660563666,3.10751,3218.1,3217.8,0.55]
[1737660563867,3.89249,3217.8,3217.0,6.21684]
[1737660564090,3.89249,3217.8,3216.9,0.7568]
[1737660564091,3.89249,3217.8,3217.1,0.55]
[1737660564294,3.89249,3217.8,3217.4,0.55]
[1737660564601,3.10783,3217.7,3217.2,0.55]
[1737660565094,0.7847,3217.8,3217.1,0.55]
[1737660565293,3.10791,3217.6,3217.1,3.10202562]
[1737660565454,3.10787,3217.7,3217.1,3.10832]
[1737660565651,3.10787,3217.7,3217.1,38.10832]
[1737660565853,3.10793,3217.6,3217.2,0.55]
[1737660566085,3.10823,3217.3,3217.1,35.0]
[1737660566397,3.10823,3217.3,3216.7,3.10871]
[1737660566594,3.10804,3217.5,3216.8,3.65865]
[1737660566785,3.1081,3217.4,3216.8,39.335397]
[1737660566996,3.1081,3217.4,3217.0,0.55]
[1737660567185,0.11118387,3217.6,3217.2,3.1082]
[1737660567355,0.11118387,3217.6,3217.5,0.55]
[1737660568001,0.11118387,3217.6,3217.3,0.55]
[1737660568299,3.21908387,3217.6,3217.5,0.55]
[1737660568501,3.21908387,3217.6,3216.9,3.803]
[1737660568502,3.108,3217.5,3216.9,3.91153]
[1737660568710,3.108,3217.5,3216.9,3.10853]
[1737660568711,3.86971,3217.5,3216.9,3.10853]
[1737660568879,3.10816,3217.4,3216.8,38.785407]
[1737660569077,3.10826,3217.3,3216.8,0.676747]
[1737660569378,3.10817,3217.4,3216.9,0.55]
[1737660569574,0.7617,3217.5,3216.9,3.65851]
[1737660569789,3.86971,3217.5,3216.9,3.65851]
[1737660570107,3.10849,3217.0,3216.7,35.0]
[1737660570309,3.10868,3216.8,3216.3,3.10913]
[1737660570619,3.10868,3216.8,3216.4,0.310913]
[1737660570912,3.1086,3216.9,3216.5,0.55]
[1737660571219,3.10879,3216.7,3216.4,35.310913]
[1737660571515,0.7617,3216.8,3216.5,0.55]
[1737660571720,0.7617,3216.8,3216.7,0.55]
[1737660571900,0.7617,3217.2,3216.7,0.55]
[1737660572069,0.6160579,3217.5,3216.7,0.55]
[1737660572070,3.7240779,3217.5,3216.9,0.55]
[1737660572269,0.6160579,3217.5,3217.1,0.55]
[1737660572496,3.10779,3217.8,3217.3,0.55]
[1737660573001,3.10779,3217.8,3217.1,0.55]
[1737660573002,3.10793,3217.6,3217.1,0.55]
[1737660573362,3.71702755,3217.7,3217.1,0.915842]
[1737660574010,1.91075821,3217.6,3217.1,3.65838]
[1737660574471,1.91075821,3217.6,3217.3,0.55]
[1737660575166,1.91075821,3217.6,3217.0,3.65843]
[1737660575377,5.01868821,3217.6,3217.0,3.65843]
[1737660575802,1.91075821,3217.6,3217.2,0.55]
[1737660576005,1.91075821,3217.6,3217.3,0.365835]
[1737660576717,3.10773,3217.8,3217.3,0.365835]
[1737660577020,3.10773,3217.8,3217.4,0.55]
[1737660577169,3.10755,3218.0,3217.4,0.55]
[1737660577676,3.10762,3217.9,3217.4,0.55]
[1737660577900,3.10762,3217.9,3217.4,0.915813]
[1737660578825,3.92667,3218.2,3217.5,0.8171]
[1737660579027,0.61431621,3218.1,3217.9,0.55]
[1737660579332,3.10706,3218.5,3217.9,35.55]
[1737660579690,3.10706,3218.5,3217.9,3.65758]
[1737660579894,1.91075821,3218.6,3218.1,0.55]
[1737660580054,1.91075821,3218.6,3218.3,0.55]
[1737660580935,3.72107222,3218.8,3218.3,0.55]
[1737660581542,3.10687,3218.7,3218.3,0.55]
[1737660583191,0.61430222,3218.8,3218.3,0.55]
[1737660583338,3.10684,3218.7,3218.3,0.55]
[1737660583539,3.10756,3218.0,3217.4,3.10803]
[1737660583986,0.8016,3218.2,3217.1,6.5]
[1737660584194,3.10803,3217.5,3217.1,6.5]
[1737660584394,3.96288479,3218.1,3217.1,9.60835]
[1737660584395,3.10788,3217.7,3217.1,9.60835]
[1737660584572,3.10746,3218.1,3217.7,0.55]
[1737660585297,0.8016,3218.2,3217.7,0.55]
[1737660585444,3.90893,3218.2,3217.7,0.55]
[1737660585788,3.10724,3218.3,3217.7,4.023538]
[1737660585943,3.10724,3218.3,3217.7,3.65775]
[1737660586290,3.72837885,3218.3,3217.7,3.65775]
[1737660586443,3.10724,3218.3,3217.7,3.65775]
[1737660587681,3.10732,3218.2,3217.9,0.55]
[1737660587887,3.10724,3218.3,3217.7,0.55]
[1737660587888,3.10742,3218.1,3217.7,0.55]
[1737660588049,3.10752,3218.0,3217.7,0.55]
[1737660588241,0.310752,3218.0,3217.2,3.89184]
[1737660588479,3.10776,3217.8,3217.3,0.55]
[1737660588680,3.10801,3217.5,3217.0,3.10844]
[1737660588882,3.74113736,3217.7,3216.8,0.7836]
[1737660589056,3.10848,3217.0,3216.5,0.7836]
[1737660589248,3.10839,3217.1,3216.7,0.55]
[1737660589644,3.10839,3217.1,3216.6,0.55]
[1737660590088,3.10839,3217.1,3216.8,0.55]
[1737660590478,3.10831,3217.2,3216.8,0.55]
[1737660590780,3.10847,3217.1,3216.8,0.55]
[1737660591386,3.10858,3216.9,3216.8,0.55]
[1737660591587,1.424778,3217.1,3216.1,1.17676667]
[1737660591774,1.424778,3217.1,3216.1,0.41666667]
[1737660591775,3.10923,3216.3,3216.1,0.41666667]
[1737660591976,3.10904,3216.5,3216.1,0.41666667]
[1737660592284,3.10912,3216.4,3216.2,35.0]
[1737660592489,3.10912,3216.4,3216.3,0.55]
[1737660592664,3.10912,3216.4,3216.1,0.41666667]
[1737660593666,6.21827,3216.4,3216.2,0.55]
[1737660593865,3.10912,3216.4,3216.2,0.55]
[1737660595891,3.10889,3216.6,3216.2,0.55]
[1737660596062,3.10872,3216.8,3216.2,3.65919]
[1737660596253,6.21748,3216.8,3216.2,3.65919]
[1737660596591,3.10872,3216.8,3216.4,0.55]
[1737660596751,3.10851,3217.0,3216.4,0.55]
[1737660596952,3.10851,3217.0,3216.5,0.55]
[1737660597291,6.21708,3217.0,3216.5,0.55]
[1737660597454,3.10851,3217.0,3216.7,0.55]
[1737660597855,4.53749857,3217.1,3216.5,0.55]
[1737660598153,3.10855,3217.0,3216.5,0.55]
[1737660598372,3.10855,3217.0,3216.7,0.55]
[1737660598900,3.0,3216.9,3216.2,0.40758567]
[1737660599102,6.91675,3216.2,3215.1,0.8065]
[1737660599413,3.11003,3215.4,3214.8,3.11054]
[1737660599609,3.11013,3215.3,3214.7,0.8065]
[1737660599797,3.11032,3215.1,3214.8,0.55]
[1737660599996,3.11013,3215.3,3214.8,0.55]
[1737660600196,3.11013,3215.3,3214.7,3.91715]
[1737660600409,3.11013,3215.3,3214.7,4.919953]
[1737660601143,3.11013,3215.3,3214.7,1.809303]
[1737660601348,3.11056,3214.9,3214.4,35.8065]
[1737660601480,0.92213145,3215.3,3214.4,35.0]
[1737660601833,3.10973,3215.8,3215.1,3.11026]
[1737660602039,3.10925,3216.3,3215.6,0.55]
[1737660602170,3.9165,3216.5,3215.6,0.55]
[1737660602371,3.10928,3216.2,3215.8,0.55]
[1737660602610,3.10928,3216.2,3216.0,0.55]
[1737660602814,3.10919,3216.3,3216.0,0.55]
[1737660603118,3.10935,3216.1,3216.0,0.55]
[1737660603532,3.10957,3215.9,3215.3,3.11009]
[1737660603740,0.7531,3216.4,3214.9,3.11049]
[1737660604031,0.61178488,3216.5,3215.0,35.0]
[1737660604032,3.11032,3215.1,3215.0,35.0]
[1737660604191,3.11059,3214.9,3214.4,0.8072]
[1737660604734,3.11034,3215.1,3214.5,35.0]
[1737660605028,3.11034,3215.1,3214.6,0.55]
[1737660605395,3.86325,3215.3,3214.6,0.55]
[1737660605602,3.71726705,3215.2,3214.6,3.66073]
[1737660606315,3.11048,3215.0,3214.5,0.55]
[1737660606525,3.11048,3215.0,3214.8,0.55]
[1737660606829,1.1246078,3215.2,3214.4,0.8072]
[1737660607130,0.60699705,3215.2,3214.7,3.11061]
[1737660607329,3.86328,3215.3,3214.6,0.55]
[1737660607530,3.11018,3215.3,3214.9,0.55]
[1737660607693,3.11018,3215.3,3214.4,0.8072]
[1737660607694,0.781,3215.6,3214.4,0.8072]
[1737660607894,3.11115,3214.3,3213.8,6.5]
[1737660608111,0.311115,3214.3,3213.8,6.5]
[1737660608287,3.11148,3213.9,3213.8,6.5]
[1737660608481,3.1114,3214.0,3213.2,3.11214]
[1737660608687,3.1114,3214.0,3213.4,3.11196]
[1737660609015,3.11161,3213.8,3213.2,3.11214]
[1737660609216,3.1118,3213.6,3213.1,0.7984]
[1737660609380,3.1118,3213.6,3213.0,3.11235]
[1737660609818,3.11195,3213.5,3213.1,35.0]
[1737660610060,3.11167,3213.7,3213.1,35.0]
[1737660610285,3.11167,3213.7,3213.2,0.55]
[1737660610418,3.11168,3213.7,3213.2,0.55]
[1737660610731,3.11168,3213.7,3213.0,38.11234]
[1737660611133,3.11168,3213.7,3213.1,3.66219]
[1737660611459,3.11129,3214.1,3213.4,0.55]
[1737660611657,0.7515,3214.2,3213.2,0.55]
[1737660611881,3.11222,3213.2,3213.0,35.0]
[1737660612015,0.7637,3213.2,3212.2,3.2408853]
[1737660612221,3.87673,3212.3,3212.2,3.2408853]
[1737660612454,3.87673,3212.3,3211.2,0.7587]
[1737660612455,3.11327,3212.1,3211.2,35.7587]
[1737660612760,0.7637,3212.3,3211.2,3.8727]
[1737660612761,3.1134,3212.0,3211.2,3.8727]
[1737660612929,3.1134,3212.0,3211.2,3.87278]
[1737660613258,3.11367,3211.7,3211.0,0.1640512]
[1737660613427,0.8083,3211.5,3211.0,0.1640512]
[1737660613844,3.11419,3211.1,3211.0,0.1640512]
[1737660614357,3.74706161,3211.1,3211.0,0.1640512]
[1737660614666,4.53956161,3211.1,3211.0,0.1640512]
[1737660614955,7.91847315,3211.1,3211.0,1.2e-06]
[1737660615265,3.11487,3210.4,3210.3,3.2408853]
[1737660615421,3.93926,3210.1,3210.0,3.9e-06]
[1737660616335,4.39430847,3210.1,3210.0,3.9e-06]
[1737660616665,4.57719081,3210.1,3210.0,3.9e-06]
[1737660616860,1.46203081,3210.1,3210.0,3.9e-06]
[1737660617061,3.11503,3210.3,3210.0,3.9e-06]
[1737660617316,0.32523311,3210.4,3210.0,3.9e-06]
[1737660617526,3.5654533,3210.8,3210.0,3.9e-06]
[1737660617687,3.11447,3210.9,3210.1,0.55]
[1737660617898,3.11447,3210.9,3210.4,0.55]
[1737660617899,0.62703186,3210.9,3210.4,0.55]
[1737660618114,0.8047,3211.0,3210.4,0.55]
[1737660618433,3.11409,3211.3,3210.4,0.55]
[1737660618725,3.91853,3211.5,3210.7,0.55]
[1737660618898,0.61247382,3211.2,3211.0,35.0]
[1737660619283,0.61247382,3211.2,3211.1,0.55]
[1737660619480,3.11352,3211.8,3211.0,35.0]
[1737660619813,3.11342,3211.9,3211.0,35.0]
[1737660619990,3.11364,3211.7,3211.0,35.0]
[1737660620189,0.62848987,3211.5,3211.0,35.0]
[1737660620416,3.1139,3211.4,3211.0,35.0]
[1737660620713,3.11465,3210.7,3209.7,0.7657]
[1737660620900,0.7857,3211.1,3209.7,0.7657]
[1737660621102,0.7857,3211.1,3209.8,0.55]
[1737660621339,3.62848987,3211.5,3209.8,0.55]
[1737660621625,0.7669,3212.2,3211.7,3.11358]
[1737660621812,0.7669,3212.2,3210.7,0.8188]
[1737660621985,0.63490876,3212.3,3211.5,3.11374]
[1737660622180,1.02813417,3212.3,3211.6,3.11371]
[1737660622482,0.63490876,3212.3,3210.9,3.11437]
[1737660622681,3.95274438,3211.3,3210.1,7.3188]
[1737660622997,4.0169,3212.1,3210.1,7.3188]
[1737660622998,3.11444,3210.9,3210.1,7.3188]
[1737660623318,3.1139,3211.4,3210.6,3.11459]
[1737660623545,3.1139,3211.4,3210.1,7.3188]
[1737660623705,3.11431,3211.0,3210.3,3.11492]
[1737660623884,3.11425,3211.1,3210.3,3.11496]
[1737660624091,3.42543,3211.3,3210.5,3.11476]
[1737660624330,3.11424,3211.1,3210.1,0.8188]
[1737660624592,0.55,3211.3,3210.1,0.8188]
[1737660624863,0.55,3211.3,3210.0,3.9e-06]
[1737660624996,3.114,3211.3,3210.0,3.9e-06]
[1737660625338,3.11484,3210.5,3210.0,3.9e-06]
[1737660625551,0.37891154,3211.9,3210.0,3.9e-06]
[1737660625552,0.32487198,3212.5,3210.5,12.50754]
[1737660625852,3.1124,3213.0,3211.6,3.11363]
[1737660625988,0.813,3212.7,3211.3,0.8188]
[1737660626339,0.813,3212.7,3210.8,3.88017]
[1737660626340,1.2593942,3212.7,3210.8,3.88017]
[1737660626544,0.813,3211.6,3210.6,3.65065]
[1737660626744,0.813,3211.6,3210.9,3.11431]
[1737660626954,0.813,3211.6,3211.0,3.11426]
[1737660627241,0.813,3211.6,3211.0,3.11422]
[1737660627437,3.92673,3211.6,3210.8,3.11447]
[1737660627644,0.813,3211.6,3210.9,0.3479535]
[1737660627940,0.813,3212.1,3211.6,3.1137]
[1737660628236,3.11297,3212.4,3211.1,3.87982]
[1737660628440,0.813,3212.6,3211.1,0.7657]
[1737660628849,3.11234,3213.1,3212.5,3.11283]
[1737660628850,0.813,3213.1,3212.5,3.11283]
[1737660628990,3.92533,3213.1,3212.3,3.11302]
[1737660629187,3.92533,3213.1,3211.8,3.11351]
[1737660629188,3.11269,3212.7,3211.8,3.11351]
[1737660629421,3.11261,3212.8,3212.0,3.1133]
[1737660629632,3.11264,3212.7,3212.0,3.1133]
[1737660629809,3.11283,3212.6,3211.8,3.11351]
[1737660630024,3.11256,3212.8,3211.8,3.501431]
[1737660630230,3.11274,3212.6,3211.8,3.11342]
[1737660630541,3.11235,3213.0,3212.0,3.11326]
[1737660630709,3.11265,3212.7,3212.0,3.11326]
[1737660630891,3.11265,3212.7,3212.1,3.11321]
[1737660631090,3.11235,3213.0,3211.6,0.7657]
[1737660631091,3.11256,3212.8,3211.9,3.11339]
[1737660631291,0.813,3213.1,3212.4,3.11286]
[1737660631528,3.11235,3213.0,3212.4,3.11286]
[1737660631728,0.813,3213.1,3212.2,3.11308]
[1737660632029,3.92528,3213.1,3212.1,3.11322]
[1737660632231,3.11261,3212.8,3212.1,3.11322]
[1737660632747,3.11235,3213.0,3212.0,3.11332]
[1737660633029,3.86658,3213.6,3212.1,0.3424659]
[1737660633229,3.11187,3213.5,3212.8,3.11253]
[1737660633390,0.7548,3213.6,3212.0,3.94752677]
[1737660633391,3.86658,3213.6,3212.6,3.11272]
[1737660633596,3.11198,3213.4,3212.7,3.11261]
[1737660633827,3.11226,3213.1,3212.4,3.11285]
[1737660634036,3.11226,3213.1,3212.2,3.11313]
[1737660634037,3.11226,3213.1,3212.5,3.11284]
[1737660634405,3.11206,3213.3,3212.5,3.11284]
[1737660634733,0.11456709,3213.5,3212.3,3.11302]
[1737660634940,3.11224,3213.2,3212.5,3.11282]
[1737660635446,0.7548,3214.4,3212.6,38.11274]
[1737660635656,3.1117,3213.7,3212.8,3.11254]
[1737660635833,3.1122,3213.2,3212.6,35.0]
[1737660636033,0.60828402,3214.1,3212.1,3.90651]
[1737660636034,3.11236,3213.0,3212.1,3.90651]
[1737660636214,3.11258,3212.8,3212.1,3.90651]
[1737660636407,3.11292,3212.5,3211.8,3.1135]
[1737660636613,3.423776,3212.9,3211.7,0.7933]
[1737660636827,3.423776,3212.9,3212.0,3.11332]
[1737660637043,3.11255,3212.8,3212.0,3.11332]
[1737660637353,3.11266,3212.7,3212.0,3.11332]
[1737660637513,0.29848413,3212.8,3212.2,3.1131]
[1737660637912,0.29848413,3212.8,3212.3,3.11301]
[1737660638646,0.29848413,3212.8,3211.8,0.55]
[1737660638818,0.29848413,3212.8,3212.1,3.11322]
[1737660639144,0.29848413,3212.8,3211.7,6.90683]
[1737660639145,0.29848413,3212.8,3212.7,3.11264]
[1737660639352,3.11185,3213.6,3212.9,3.11244]
[1737660639641,3.11209,3213.3,3212.8,35.0]
[1737660639887,0.7837,3213.8,3212.3,3.11295]
[1737660639888,3.11242,3213.0,3212.3,3.11295]
[1737660640086,3.11246,3212.9,3212.1,3.91945]
[1737660640253,0.7837,3213.8,3212.0,3.1133]
[1737660640254,3.11282,3212.6,3212.0,3.1133]
[1737660640452,3.11282,3212.6,3211.8,3.1135]
[1737660640660,3.11304,3212.3,3211.7,3.91989]
[1737660640981,3.88825,3212.5,3211.8,3.1135]
[1737660641178,3.11294,3212.4,3211.7,3.11359]
[1737660641479,3.11295,3212.4,3211.8,3.1135]
[1737660642044,3.11384,3211.5,3210.9,3.87765]
[1737660642270,3.11384,3211.5,3210.9,3.87762]
[1737660642585,3.11314,3212.2,3211.0,3.11427]
[1737660642737,3.11387,3211.5,3210.9,3.87769]
[1737660642940,3.11387,3211.5,3210.7,35.0]
[1737660642941,3.11413,3211.2,3210.6,3.11466]
[1737660643382,3.11413,3211.2,3210.7,35.0]
[1737660643680,3.11403,3211.3,3210.7,35.0]
[1737660643879,3.11416,3211.2,3210.7,35.0]
[1737660644082,3.88923,3211.5,3210.7,35.0]
[1737660644392,0.7754,3211.5,3210.9,3.11437]
[1737660644742,3.88927,3211.5,3210.9,3.11437]
[1737660644943,0.11512341,3211.4,3210.9,3.11437]
[1737660645168,0.11512341,3211.4,3211.0,3.11426]
[1737660645368,0.11512341,3211.4,3211.0,3.1142]
[1737660645568,0.11512341,3211.4,3210.7,38.10202562]
[1737660645759,0.11512341,3211.4,3211.3,3.114]
[1737660646282,0.11512341,3211.4,3211.3,10.06152677]
[1737660646481,0.18070047,3212.0,3211.9,3.90872]
[1737660646643,0.18070047,3212.0,3211.9,45.85624677]
[1737660647244,3.11241,3213.0,3212.4,3.11288]
[1737660647481,0.7552,3213.2,3211.9,35.7953]
[1737660647482,3.11254,3212.8,3211.9,35.7953]
[1737660647643,0.7552,3213.2,3212.9,3.11237]
[1737660647851,0.7552,3213.2,3212.5,7.06034677]
[1737660648185,3.11236,3213.0,3212.2,3.11304]
[1737660648391,3.11236,3213.0,3212.1,3.11319]
[1737660648392,3.11258,3212.8,3212.1,3.11319]
[1737660648799,3.22573958,3212.9,3212.3,3.113]
[1737660649005,3.22573958,3212.9,3212.2,3.11311]
[1737660649299,3.11285,3212.5,3212.0,0.41666667]
[1737660649462,3.11311,3212.3,3212.0,0.41666667]
[1737660649661,3.11316,3212.2,3212.0,0.41666667]
[1737660649917,3.11311,3212.3,3212.0,0.41666667]
[1737660650283,3.11268,3212.7,3212.0,0.41666667]
[1737660650608,0.48212937,3212.7,3212.0,0.41666667]
[1737660650907,1.07481075,3212.8,3212.2,3.11311]
[1737660651090,1.07481075,3212.8,3212.1,35.0]
[1737660651287,0.29441075,3212.8,3212.4,3.11288]
[1737660651489,0.11322958,3212.6,3212.4,3.11288]
[1737660651827,0.11322958,3212.6,3212.2,3.89613]
[1737660651968,0.11322958,3212.6,3212.5,3.11284]
[1737660652424,0.11322958,3212.6,3212.5,7.68293877]
[1737660652830,3.11179,3213.6,3212.9,3.11245]
[1737660652831,0.11322958,3213.0,3212.9,3.11245]
[1737660653726,3.11145,3214.0,3213.2,3.1121]
[1737660654022,3.11145,3214.0,3212.6,3.11265]
[1737660654023,0.61622731,3214.1,3212.1,0.788]
[1737660654182,0.61622731,3214.1,3212.0,0.41666667]
[1737660654183,3.11296,3212.4,3212.0,0.41666667]
[1737660654383,3.11283,3212.6,3212.0,3.52991667]
[1737660655384,3.11259,3212.8,3212.0,3.52991667]
[1737660655582,3.11262,3212.8,3212.1,3.11315]
[1737660655876,3.11262,3212.8,3212.2,3.11312]
[1737660656273,3.11245,3212.9,3212.2,3.11312]
[1737660656690,3.11245,3212.9,3212.3,3.11303]
[1737660657299,3.74629943,3213.1,3212.5,3.11283]
[1737660657612,3.1125,3212.9,3212.3,3.87113]
[1737660658107,3.11274,3212.6,3212.0,4.36419344]
[1737660658311,3.11322,3212.1,3212.0,0.41666667]
[1737660658877,4.15854309,3212.1,3212.0,6.67e-06]
[1737660659418,7.15854309,3212.1,3212.0,6.67e-06]
[1737660659912,7.70854309,3212.1,3212.0,6.67e-06]
[1737660660077,8.7907084,3212.1,3212.0,6.67e-06]
[1737660661089,8.85613515,3212.1,3212.0,6.67e-06]
[1737660661490,5.85613515,3212.1,3212.0,6.67e-06]
[1737660661827,0.29512309,3212.1,3212.0,6.67e-06]
[1737660662368,3.11294,3212.4,3212.0,6.67e-06]
[1737660662875,0.7621,3212.6,3212.0,6.67e-06]
[1737660663075,3.11299,3212.4,3212.0,6.67e-06]
[1737660663314,3.11313,3212.2,3212.0,6.67e-06]
[1737660663517,3.1131,3212.3,3212.0,6.67e-06]
[1737660663843,0.8105,3213.6,3212.1,0.7956]
[1737660663984,3.11204,3213.4,3212.7,7.06016677]
[1737660664181,3.92229,3213.6,3212.7,7.06016677]
[1737660664484,3.11179,3213.6,3212.8,0.7783]
[1737660664701,3.11179,3213.6,3212.9,35.0]
[1737660664907,3.11179,3213.6,3212.8,3.89084]
[1737660665280,3.11141,3214.0,3212.9,35.0]
[1737660665477,3.11168,3213.7,3213.0,3.11228]
[1737660665732,3.11213,3213.3,3212.9,35.0]
[1737660665929,3.11213,3213.3,3212.8,1.87341068]
[1737660666116,3.11213,3213.3,3212.8,0.7783]
[1737660666428,3.11213,3213.3,3212.8,35.0]
[1737660666631,0.8077,3213.5,3212.5,0.8184]
[1737660666976,3.11236,3213.0,3212.5,0.8184]
[1737660667385,3.11216,3213.2,3212.5,0.8184]
[1737660667578,3.91958,3213.5,3212.6,3.11272]
[1737660667579,3.1121,3213.3,3212.6,3.11272]
[1737660667779,3.1121,3213.3,3212.6,3.505832]
[1737660668001,3.11232,3213.1,3212.5,0.8184]
[1737660668411,3.11208,3213.3,3212.5,0.8184]
[1737660668412,3.11225,3213.2,3212.5,0.8184]
[1737660668614,0.8077,3213.5,3212.2,3.0]
[1737660668615,3.11248,3212.9,3212.2,3.0]
[1737660668814,3.11248,3212.9,3212.3,3.11301]
[1737660669397,3.11208,3213.3,3212.6,3.11272]
[1737660669616,3.11217,3213.2,3212.6,3.423992]
[1737660670240,3.17130498,3213.9,3213.1,3.11224]
[1737660670441,3.11195,3213.5,3212.7,0.7896]
[1737660670762,3.11168,3213.7,3213.0,3.11235]
[1737660671128,3.11194,3213.5,3212.8,3.11254]
[1737660671329,3.11178,3213.6,3212.9,3.11245]
[1737660672058,3.11178,3213.6,3212.7,3.90223]
[1737660672269,3.11199,3213.4,3212.8,3.11252]
[1737660672471,3.11206,3213.3,3212.7,0.7896]
[1737660672992,3.11169,3213.7,3213.0,3.11235]
[1737660673333,3.11177,3213.6,3213.0,3.11235]
[1737660673674,3.11193,3213.5,3212.8,3.11254]
[1737660673875,3.11209,3213.3,3212.7,1.49111]
[1737660674095,3.17130498,3213.9,3212.7,0.7896]
[1737660674419,3.17130498,3213.9,3212.4,3.11288]
[1737660674420,3.11237,3213.0,3212.4,3.11288]
[1737660674595,3.112,3213.4,3212.6,3.11269]
[1737660674780,3.112,3213.4,3212.7,3.11257]
[1737660674981,3.11244,3213.0,3212.3,0.757]
[1737660675168,3.11253,3212.9,3212.3,3.87002]
[1737660675374,3.11253,3212.9,3212.3,0.757]
[1737660675691,3.11251,3212.9,3212.3,0.757]
[1737660675899,3.11257,3212.8,3212.3,0.757]
[1737660677017,3.11322,3212.1,3212.0,6.67e-06]
[1737660677163,3.89682,3212.1,3212.0,6.67e-06]
[1737660677367,7.597814,3212.1,3212.0,6.67e-06]
[1737660678096,8.147814,3212.1,3212.0,6.67e-06]
[1737660679304,12.77777568,3212.1,3212.0,6.67e-06]
[1737660679806,4.88227138,3212.1,3212.0,6.67e-06]
[1737660680007,4.18127738,3212.1,3212.0,6.67e-06]
[1737660680196,3.39767738,3212.1,3212.0,6.67e-06]
[1737660680376,0.28445738,3212.1,3212.0,6.67e-06]